[Event "Titled Tuesday Blitz June 6 Early 2023"]
[White "Lenderman, Aleksandr"]
[Black "qx4z"]
[WhiteFideId "2021285"]
[WhiteElo "2607"]
[BlackElo "2766"]
[Result "1-0"]
[Round "8"]
[TimeControl "180+2"]
[Date "2023.06.06"]
[WhiteClock "0:00:31"]
[BlackClock "0:00:08"]
[Board "11"]

1. Nf3 {[%clk 0:03:00]}  Nf6 {[%clk 0:03:00]} 2. c4 {[%clk 0:03:00]}  g6 {[%clk 0:03:00]} 3. g3 {[%clk 0:02:56]}  Bg7 {[%clk 0:03:00]} 4. Bg2 {[%clk 0:02:57]}  O-O {[%clk 0:03:01]} 5. O-O {[%clk 0:02:57]}  c6 {[%clk 0:03:01]} 6. d4 {[%clk 0:02:53]}  d5 {[%clk 0:02:59]} 7. Qb3 {[%clk 0:02:51]}  dxc4 {[%clk 0:02:59]} 8. Qxc4 {[%clk 0:02:51]}  Bf5 {[%clk 0:02:59]} 9. Rd1 {[%clk 0:02:50]}  Nbd7 {[%clk 0:02:59]} 10. Qb3 {[%clk 0:02:48]}  Qb6 {[%clk 0:02:58]} 11. Nbd2 {[%clk 0:02:48]}  Ne4 {[%clk 0:02:51]} 12. Nc4 {[%clk 0:02:42]}  Qa6 {[%clk 0:02:38]} 13. Ne3 {[%clk 0:02:07]}  Qxe2 {[%clk 0:02:29]} 14. Nxf5 {[%clk 0:02:07]}  Qxf2+ {[%clk 0:02:30]} 15. Kh1 {[%clk 0:02:07]}  gxf5 {[%clk 0:02:25]} 16. Rf1 {[%clk 0:01:48]}  Qe2 {[%clk 0:02:20]} 17. Re1 {[%clk 0:01:47]}  Qb5 {[%clk 0:01:51]} 18. Qc2 {[%clk 0:01:35]}  e6 {[%clk 0:01:50]} 19. a4 {[%clk 0:01:32]}  Qb4 {[%clk 0:01:47]} 20. g4 {[%clk 0:01:23]}  fxg4 {[%clk 0:01:38]} 21. Rxe4 {[%clk 0:01:23]}  gxf3 {[%clk 0:01:38]} 22. Bxf3 {[%clk 0:01:23]}  Nf6 {[%clk 0:01:37]} 23. Bd2 {[%clk 0:01:18]}  Qe7 {[%clk 0:01:01]} 24. Rh4 {[%clk 0:01:16]}  Rfd8 {[%clk 0:00:44]} 25. Rg1 {[%clk 0:01:14]}  Kf8 {[%clk 0:00:41]} 26. d5 {[%clk 0:00:37]}  Nxd5 {[%clk 0:00:29]} 27. Rxg7 {[%clk 0:00:36]}  Kxg7 {[%clk 0:00:16]} 28. Qxh7+ {[%clk 0:00:35]}  Kf6 {[%clk 0:00:17]} 29. Bg5+ {[%clk 0:00:31]}  Kxg5 {[%clk 0:00:11]} 30. Qh6+ {[%clk 0:00:31]}  Kf5 {[%clk 0:00:11]} 31. Rh5+ {[%clk 0:00:31]}  Qg5 {[%clk 0:00:08]} 32. Qxg5# {[%clk 0:00:31]} 1-0


[Site "https://www.chess.com"]

[Event "Titled Tuesday Blitz June 6 Early 2023"]
[White "Babazada, Khazar"]
[Black "Aradhya, Garg"]
[WhiteFideId "13413554"]
[BlackFideId "25006746"]
[WhiteElo "2369"]
[BlackElo "2263"]
[Result "1-0"]
[Round "8"]
[TimeControl "180+2"]
[Date "2023.06.06"]
[WhiteClock "0:00:16"]
[BlackClock "0:00:05"]
[Board "13"]

1. e4 {[%clk 0:03:00]}  e5 {[%clk 0:03:00]} 2. Nf3 {[%clk 0:02:59]}  Nc6 {[%clk 0:03:00]} 3. Bc4 {[%clk 0:02:59]}  Nf6 {[%clk 0:03:00]} 4. d4 {[%clk 0:02:59]}  exd4 {[%clk 0:03:01]} 5. e5 {[%clk 0:02:57]}  d5 {[%clk 0:03:00]} 6. Bb5 {[%clk 0:02:55]}  Ne4 {[%clk 0:03:00]} 7. O-O {[%clk 0:02:51]}  Bg4 {[%clk 0:02:51]} 8. h3 {[%clk 0:02:28]}  Bh5 {[%clk 0:02:50]} 9. g4 {[%clk 0:02:28]}  Bg6 {[%clk 0:02:50]} 10. Nxd4 {[%clk 0:02:28]}  Qd7 {[%clk 0:02:43]} 11. f4 {[%clk 0:02:22]}  Bc5 {[%clk 0:02:29]} 12. Be3 {[%clk 0:02:22]}  f5 {[%clk 0:02:22]} 13. c3 {[%clk 0:02:18]}  O-O {[%clk 0:02:14]} 14. Ba4 {[%clk 0:02:16]}  Qe7 {[%clk 0:02:01]} 15. Bb3 {[%clk 0:02:12]}  Rad8 {[%clk 0:01:56]} 16. Qe1 {[%clk 0:01:57]}  Na5 {[%clk 0:01:30]} 17. Nd2 {[%clk 0:01:55]}  Nxb3 {[%clk 0:01:30]} 18. axb3 {[%clk 0:01:53]}  Bb6 {[%clk 0:01:30]} 19. b4 {[%clk 0:01:53]}  c5 {[%clk 0:01:27]} 20. bxc5 {[%clk 0:01:53]}  Nxc5 {[%clk 0:01:26]} 21. N2f3 {[%clk 0:01:49]}  fxg4 {[%clk 0:01:07]} 22. hxg4 {[%clk 0:01:50]}  Bd3 {[%clk 0:01:07]} 23. f5 {[%clk 0:01:51]}  Bxf1 {[%clk 0:01:05]} 24. Qxf1 {[%clk 0:01:51]}  Ne4 {[%clk 0:01:04]} 25. Qh3 {[%clk 0:01:49]}  Qf7 {[%clk 0:00:48]} 26. Kg2 {[%clk 0:01:47]}  Rfe8 {[%clk 0:00:23]} 27. Rh1 {[%clk 0:01:46]}  h6 {[%clk 0:00:24]} 28. g5 {[%clk 0:01:29]}  Bxd4 {[%clk 0:00:24]} 29. cxd4 {[%clk 0:01:28]}  Rc8 {[%clk 0:00:24]} 30. Ne1 {[%clk 0:01:20]}  Rc4 {[%clk 0:00:15]} 31. gxh6 {[%clk 0:01:14]}  g6 {[%clk 0:00:15]} 32. h7+ {[%clk 0:01:13]}  Kh8 {[%clk 0:00:15]} 33. f6 {[%clk 0:01:04]}  Rb4 {[%clk 0:00:16]} 34. Nd3 {[%clk 0:01:03]}  Rb3 {[%clk 0:00:16]} 35. Bc1 {[%clk 0:01:03]}  Nxf6 {[%clk 0:00:10]} 36. Rf1 {[%clk 0:00:54]}  Qxh7 {[%clk 0:00:10]} 37. Qf3 {[%clk 0:00:47]}  Nh5 {[%clk 0:00:10]} 38. Bg5 {[%clk 0:00:47]}  Kg8 {[%clk 0:00:09]} 39. Qxd5+ {[%clk 0:00:42]}  Kh8 {[%clk 0:00:10]} 40. Qxb3 {[%clk 0:00:42]}  Qd7 {[%clk 0:00:10]} 41. Qf7 {[%clk 0:00:33]}  Qg4+ {[%clk 0:00:10]} 42. Kh2 {[%clk 0:00:34]}  Rg8 {[%clk 0:00:08]} 43. Bf6+ {[%clk 0:00:34]}  Ng7 {[%clk 0:00:07]} 44. Rf4 {[%clk 0:00:33]}  Qe2+ {[%clk 0:00:05]} 45. Nf2 {[%clk 0:00:33]}  g5 {[%clk 0:00:02]} 46. Rh4+ {[%clk 0:00:34]}  gxh4 {[%clk 0:00:02]} 47. Kh3 {[%clk 0:00:26]}  Qf3+ {[%clk 0:00:02]} 48. Kxh4 {[%clk 0:00:26]}  Qxf2+ {[%clk 0:00:02]} 49. Kg4 {[%clk 0:00:26]}  Qf5+ {[%clk 0:00:02]} 50. Kh4 {[%clk 0:00:25]}  Kh7 {[%clk 0:00:03]} 51. d5 {[%clk 0:00:22]}  Qg6 {[%clk 0:00:03]} 52. Qd7 {[%clk 0:00:21]}  Qh5+ {[%clk 0:00:03]} 53. Kg3 {[%clk 0:00:22]}  Kg6 {[%clk 0:00:04]} 54. d6 {[%clk 0:00:13]}  Nf5+ {[%clk 0:00:04]} 55. Kf4 {[%clk 0:00:14]}  Qh6+ {[%clk 0:00:05]} 56. Ke4 {[%clk 0:00:14]}  Qf4+ {[%clk 0:00:05]} 57. Kxf4 {[%clk 0:00:14]}  Rf8 {[%clk 0:00:05]} 58. Qxf5+ {[%clk 0:00:15]}  Kh6 {[%clk 0:00:05]} 59. Qg5+ {[%clk 0:00:15]}  Kh7 {[%clk 0:00:05]} 60. Qg7# {[%clk 0:00:16]} 1-0


[Site "https://www.chess.com"]

[Event "Titled Tuesday Blitz June 6 Early 2023"]
[White "Darini, Pouria"]
[Black "Tang, Andrew"]
[WhiteFideId "12502200"]
[BlackFideId "2059630"]
[WhiteElo "2482"]
[BlackElo "2600"]
[Result "0-1"]
[Round "8"]
[TimeControl "180+2"]
[Date "2023.06.06"]
[WhiteClock "0:00:01"]
[BlackClock "0:00:04"]
[Board "14"]

1. e4 {[%clk 0:03:00]}  e5 {[%clk 0:02:59]} 2. Nf3 {[%clk 0:02:58]}  Nc6 {[%clk 0:02:59]} 3. Bb5 {[%clk 0:02:58]}  g6 {[%clk 0:02:59]} 4. O-O {[%clk 0:02:56]}  Bg7 {[%clk 0:02:58]} 5. d3 {[%clk 0:02:47]}  d6 {[%clk 0:02:56]} 6. a4 {[%clk 0:02:44]}  Nf6 {[%clk 0:02:56]} 7. a5 {[%clk 0:02:44]}  a6 {[%clk 0:02:45]} 8. Bc4 {[%clk 0:02:44]}  O-O {[%clk 0:02:42]} 9. Nc3 {[%clk 0:02:45]}  h6 {[%clk 0:02:41]} 10. Re1 {[%clk 0:02:42]}  Kh7 {[%clk 0:02:41]} 11. Nd5 {[%clk 0:02:32]}  Nxd5 {[%clk 0:02:34]} 12. Bxd5 {[%clk 0:02:33]}  Nb4 {[%clk 0:02:10]} 13. Bb3 {[%clk 0:02:31]}  f5 {[%clk 0:02:10]} 14. exf5 {[%clk 0:02:19]}  Bxf5 {[%clk 0:02:09]} 15. h3 {[%clk 0:02:08]}  Qf6 {[%clk 0:01:48]} 16. Nh2 {[%clk 0:01:29]}  c6 {[%clk 0:01:01]} 17. Qe2 {[%clk 0:01:26]}  Nd5 {[%clk 0:01:00]} 18. Ng4 {[%clk 0:01:13]}  Qh4 {[%clk 0:00:33]} 19. Nh2 {[%clk 0:01:00]}  Bd7 {[%clk 0:00:20]} 20. Nf3 {[%clk 0:00:56]}  Qf6 {[%clk 0:00:16]} 21. Nh2 {[%clk 0:00:50]}  Nf4 {[%clk 0:00:15]} 22. Bxf4 {[%clk 0:00:50]}  Qxf4 {[%clk 0:00:16]} 23. Qe3 {[%clk 0:00:45]}  Qh4 {[%clk 0:00:14]} 24. Nf3 {[%clk 0:00:42]}  Qf6 {[%clk 0:00:14]} 25. Nd2 {[%clk 0:00:39]}  d5 {[%clk 0:00:13]} 26. Qb6 {[%clk 0:00:29]}  Rf7 {[%clk 0:00:10]} 27. Nf1 {[%clk 0:00:26]}  Raf8 {[%clk 0:00:10]} 28. Qe3 {[%clk 0:00:23]}  Qxf2+ {[%clk 0:00:09]} 29. Qxf2 {[%clk 0:00:22]}  Rxf2 {[%clk 0:00:10]} 30. Nh2 {[%clk 0:00:19]}  R2f5 {[%clk 0:00:08]} 31. c3 {[%clk 0:00:16]}  h5 {[%clk 0:00:07]} 32. Re2 {[%clk 0:00:15]}  Bh6 {[%clk 0:00:08]} 33. Rae1 {[%clk 0:00:15]}  Bf4 {[%clk 0:00:08]} 34. Nf1 {[%clk 0:00:16]}  Kg7 {[%clk 0:00:07]} 35. g3 {[%clk 0:00:13]}  Bh6 {[%clk 0:00:06]} 36. Rxe5 {[%clk 0:00:14]}  Rxe5 {[%clk 0:00:06]} 37. Rxe5 {[%clk 0:00:14]}  Bxh3 {[%clk 0:00:07]} 38. Nh2 {[%clk 0:00:07]}  Bc1 {[%clk 0:00:03]} 39. Re2 {[%clk 0:00:08]}  Kf7 {[%clk 0:00:03]} 40. Bd1 {[%clk 0:00:07]}  Re8 {[%clk 0:00:03]} 41. b3 {[%clk 0:00:03]}  Rxe2 {[%clk 0:00:02]} 42. Bxe2 {[%clk 0:00:04]}  Be3+ {[%clk 0:00:03]} 43. Kh1 {[%clk 0:00:04]}  Bf2 {[%clk 0:00:03]} 44. Nf3 {[%clk 0:00:04]}  Bxg3 {[%clk 0:00:03]} 45. Ng5+ {[%clk 0:00:04]}  Kf6 {[%clk 0:00:04]} 46. Nxh3 {[%clk 0:00:05]}  Be1 {[%clk 0:00:05]} 47. c4 {[%clk 0:00:05]}  Bxa5 {[%clk 0:00:05]} 48. cxd5 {[%clk 0:00:05]}  cxd5 {[%clk 0:00:06]} 49. Nf4 {[%clk 0:00:06]}  d4 {[%clk 0:00:06]} 50. Bf3 {[%clk 0:00:05]}  b5 {[%clk 0:00:06]} 51. Be4 {[%clk 0:00:05]}  Kg5 {[%clk 0:00:03]} 52. Nxg6 {[%clk 0:00:05]}  Bc7 {[%clk 0:00:04]} 53. Kg2 {[%clk 0:00:04]}  Bd6 {[%clk 0:00:04]} 54. Kh3 {[%clk 0:00:02]}  a5 {[%clk 0:00:05]} 55. Nh4 {[%clk 0:00:02]}  Kf4 {[%clk 0:00:05]} 56. Nf5 {[%clk 0:00:01]}  Bc5 {[%clk 0:00:05]} 57. Ng7 {[%clk 0:00:01]}  Ke3 {[%clk 0:00:04]} 0-1


[Site "https://www.chess.com"]

[Event "Titled Tuesday Blitz June 6 Early 2023"]
[White "Hakobyan, Aram"]
[Black "Weetik, Vjacheslav"]
[WhiteFideId "13306677"]
[BlackFideId "4153472"]
[WhiteElo "2584"]
[BlackElo "2469"]
[Result "1-0"]
[Round "8"]
[TimeControl "180+2"]
[Date "2023.06.06"]
[WhiteClock "0:00:54"]
[BlackClock "0:00:03"]
[Board "16"]

1. d4 {[%clk 0:03:00]}  Nf6 {[%clk 0:02:59]} 2. c4 {[%clk 0:03:01]}  g6 {[%clk 0:02:59]} 3. Nc3 {[%clk 0:03:01]}  Bg7 {[%clk 0:03:00]} 4. e4 {[%clk 0:03:01]}  d6 {[%clk 0:03:00]} 5. Be2 {[%clk 0:03:02]}  O-O {[%clk 0:02:55]} 6. Nf3 {[%clk 0:03:02]}  e5 {[%clk 0:02:55]} 7. O-O {[%clk 0:03:03]}  Nc6 {[%clk 0:02:55]} 8. d5 {[%clk 0:03:03]}  Ne7 {[%clk 0:02:55]} 9. Kh1 {[%clk 0:03:03]}  c6 {[%clk 0:02:50]} 10. Ne1 {[%clk 0:02:59]}  cxd5 {[%clk 0:02:29]} 11. cxd5 {[%clk 0:02:59]}  a6 {[%clk 0:02:18]} 12. a4 {[%clk 0:02:55]}  Kh8 {[%clk 0:02:08]} 13. Nd3 {[%clk 0:02:55]}  Nd7 {[%clk 0:02:02]} 14. a5 {[%clk 0:02:55]}  f5 {[%clk 0:01:59]} 15. f3 {[%clk 0:02:54]}  f4 {[%clk 0:01:57]} 16. b4 {[%clk 0:02:40]}  g5 {[%clk 0:01:57]} 17. b5 {[%clk 0:02:40]}  Rf6 {[%clk 0:01:52]} 18. b6 {[%clk 0:02:36]}  Nf8 {[%clk 0:01:48]} 19. g4 {[%clk 0:02:29]}  h5 {[%clk 0:01:47]} 20. h3 {[%clk 0:02:22]}  Rh6 {[%clk 0:01:41]} 21. Kg2 {[%clk 0:02:22]}  Neg6 {[%clk 0:01:28]} 22. Rh1 {[%clk 0:02:22]}  Nd7 {[%clk 0:01:20]} 23. Ba3 {[%clk 0:02:20]}  Nf6 {[%clk 0:01:21]} 24. Nf2 {[%clk 0:02:19]}  Nh4+ {[%clk 0:01:17]} 25. Kg1 {[%clk 0:02:19]}  Bf8 {[%clk 0:01:15]} 26. Rc1 {[%clk 0:02:19]}  Bd7 {[%clk 0:01:15]} 27. Na2 {[%clk 0:02:09]}  Rc8 {[%clk 0:01:12]} 28. Rxc8 {[%clk 0:02:09]}  Qxc8 {[%clk 0:01:12]} 29. Qc1 {[%clk 0:02:10]}  Qxc1+ {[%clk 0:00:36]} 30. Bxc1 {[%clk 0:02:09]}  Be7 {[%clk 0:00:37]} 31. Nb4 {[%clk 0:02:09]}  Kg7 {[%clk 0:00:36]} 32. Bb2 {[%clk 0:01:59]}  Rh8 {[%clk 0:00:35]} 33. Nfd3 {[%clk 0:01:56]}  Ng6 {[%clk 0:00:27]} 34. Rh2 {[%clk 0:01:55]}  Rc8 {[%clk 0:00:22]} 35. Bd1 {[%clk 0:01:54]}  Bb5 {[%clk 0:00:20]} 36. Rc2 {[%clk 0:01:52]}  Rxc2 {[%clk 0:00:19]} 37. Bxc2 {[%clk 0:01:53]}  hxg4 {[%clk 0:00:14]} 38. hxg4 {[%clk 0:01:53]}  Nd7 {[%clk 0:00:12]} 39. Kf2 {[%clk 0:01:44]}  Kf7 {[%clk 0:00:08]} 40. Bc3 {[%clk 0:01:15]}  Bd8 {[%clk 0:00:08]} 41. Ke2 {[%clk 0:01:15]}  Ke8 {[%clk 0:00:04]} 42. Be1 {[%clk 0:01:16]}  Nh4 {[%clk 0:00:03]} 43. Bxh4 {[%clk 0:01:01]}  gxh4 {[%clk 0:00:03]} 44. Kf2 {[%clk 0:01:02]}  Nf8 {[%clk 0:00:03]} 45. Kg2 {[%clk 0:01:01]}  Nh7 {[%clk 0:00:03]} 46. Nf2 {[%clk 0:01:02]}  Ng5 {[%clk 0:00:03]} 47. Bd3 {[%clk 0:01:02]}  Bxd3 {[%clk 0:00:03]} 48. Nbxd3 {[%clk 0:01:03]}  Kd7 {[%clk 0:00:03]} 49. Nh3 {[%clk 0:01:04]}  Nxh3 {[%clk 0:00:03]} 50. Kxh3 {[%clk 0:01:05]}  Bg5 {[%clk 0:00:03]} 51. Kg2 {[%clk 0:01:04]}  Bd8 {[%clk 0:00:04]} 52. Nb4 {[%clk 0:01:05]}  Bg5 {[%clk 0:00:03]} 53. Nd3 {[%clk 0:01:05]}  Bd8 {[%clk 0:00:04]} 54. Nf2 {[%clk 0:01:06]}  Bg5 {[%clk 0:00:04]} 55. Nh3 {[%clk 0:01:06]}  Bd8 {[%clk 0:00:04]} 56. g5 {[%clk 0:01:05]}  Ke8 {[%clk 0:00:04]} 57. g6 {[%clk 0:01:05]}  Kf8 {[%clk 0:00:04]} 58. Nf2 {[%clk 0:01:00]}  Kg7 {[%clk 0:00:04]} 59. Kh3 {[%clk 0:01:01]}  Kxg6 {[%clk 0:00:05]} 60. Kg4 {[%clk 0:01:02]}  Kf7 {[%clk 0:00:04]} 61. Kf5 {[%clk 0:01:01]}  Kg7 {[%clk 0:00:03]} 62. Ke6 {[%clk 0:01:01]}  Bxb6 {[%clk 0:00:03]} 63. axb6 {[%clk 0:00:59]}  a5 {[%clk 0:00:04]} 64. Kxd6 {[%clk 0:01:00]}  a4 {[%clk 0:00:04]} 65. Kc7 {[%clk 0:00:56]}  a3 {[%clk 0:00:05]} 66. d6 {[%clk 0:00:57]}  a2 {[%clk 0:00:06]} 67. d7 {[%clk 0:00:58]}  a1=Q {[%clk 0:00:06]} 68. d8=Q {[%clk 0:00:59]}  Qc3+ {[%clk 0:00:04]} 69. Kxb7 {[%clk 0:00:59]}  Qxf3 {[%clk 0:00:04]} 70. Qg5+ {[%clk 0:00:57]}  Kf7 {[%clk 0:00:04]} 71. Qf5+ {[%clk 0:00:57]}  Kg8 {[%clk 0:00:04]} 72. Qe6+ {[%clk 0:00:58]}  Kh7 {[%clk 0:00:04]} 73. Qf7+ {[%clk 0:00:57]}  Kh8 {[%clk 0:00:04]} 74. Qf8+ {[%clk 0:00:54]}  Kh7 {[%clk 0:00:04]} 75. Qf5+ {[%clk 0:00:55]}  Kg8 {[%clk 0:00:04]} 76. Qg5+ {[%clk 0:00:54]}  Kf7 {[%clk 0:00:03]} 77. Qxh4 {[%clk 0:00:55]}  Qe3 {[%clk 0:00:03]} 78. Qh5+ {[%clk 0:00:54]} 1-0


[Site "https://www.chess.com"]

[Event "Titled Tuesday Blitz June 6 Early 2023"]
[White "Kramnik, Vladimir"]
[Black "Danielyan, Vahe"]
[WhiteFideId "4101588"]
[BlackFideId "13304828"]
[WhiteElo "2703"]
[BlackElo "2423"]
[Result "1-0"]
[Round "8"]
[TimeControl "180+2"]
[Date "2023.06.06"]
[WhiteClock "0:00:04"]
[BlackClock "0:00:02"]
[Board "17"]

1. c4 {[%clk 0:03:00]}  Nf6 {[%clk 0:02:57]} 2. Nc3 {[%clk 0:02:59]}  g6 {[%clk 0:02:57]} 3. g3 {[%clk 0:02:58]}  Bg7 {[%clk 0:02:56]} 4. Bg2 {[%clk 0:02:58]}  O-O {[%clk 0:02:55]} 5. d3 {[%clk 0:02:58]}  d6 {[%clk 0:02:52]} 6. e3 {[%clk 0:02:58]}  c5 {[%clk 0:02:52]} 7. Nge2 {[%clk 0:02:57]}  Nc6 {[%clk 0:02:52]} 8. O-O {[%clk 0:02:55]}  e5 {[%clk 0:02:52]} 9. a3 {[%clk 0:02:54]}  Be6 {[%clk 0:02:45]} 10. b4 {[%clk 0:02:49]}  cxb4 {[%clk 0:02:44]} 11. axb4 {[%clk 0:02:49]}  Nxb4 {[%clk 0:02:43]} 12. Ba3 {[%clk 0:02:43]}  a5 {[%clk 0:02:42]} 13. Qb1 {[%clk 0:02:28]}  d5 {[%clk 0:02:40]} 14. Bxb4 {[%clk 0:02:24]}  axb4 {[%clk 0:02:30]} 15. Rxa8 {[%clk 0:02:20]}  Qxa8 {[%clk 0:02:31]} 16. Nxd5 {[%clk 0:02:13]}  Bxd5 {[%clk 0:02:26]} 17. cxd5 {[%clk 0:02:09]}  Qa3 {[%clk 0:02:26]} 18. Rc1 {[%clk 0:01:56]}  Rd8 {[%clk 0:02:03]} 19. Qc2 {[%clk 0:01:13]}  Nxd5 {[%clk 0:01:48]} 20. Bxd5 {[%clk 0:00:55]}  Rxd5 {[%clk 0:01:46]} 21. d4 {[%clk 0:00:50]}  b3 {[%clk 0:01:31]} 22. Qc8+ {[%clk 0:00:48]}  Bf8 {[%clk 0:01:28]} 23. Qxb7 {[%clk 0:00:44]}  Ra5 {[%clk 0:01:06]} 24. Rb1 {[%clk 0:00:33]}  Bb4 {[%clk 0:01:01]} 25. dxe5 {[%clk 0:00:22]}  b2 {[%clk 0:00:50]} 26. e6 {[%clk 0:00:18]}  fxe6 {[%clk 0:00:40]} 27. Qc8+ {[%clk 0:00:16]}  Kf7 {[%clk 0:00:28]} 28. Qc2 {[%clk 0:00:16]}  Be7 {[%clk 0:00:06]} 29. Rxb2 {[%clk 0:00:11]}  Rc5 {[%clk 0:00:04]} 30. Qb1 {[%clk 0:00:11]}  Qa6 {[%clk 0:00:03]} 31. Nf4 {[%clk 0:00:09]}  Qc8 {[%clk 0:00:03]} 32. Nd3 {[%clk 0:00:08]}  Rc3 {[%clk 0:00:03]} 33. Rd2 {[%clk 0:00:06]}  Qc4 {[%clk 0:00:02]} 34. Ne5+ {[%clk 0:00:04]} 1-0


[Site "https://www.chess.com"]

[Event "Titled Tuesday Blitz June 6 Early 2023"]
[White "Pakleza, Zbigniew"]
[Black "Grigorjev, Iljya"]
[WhiteFideId "1119290"]
[BlackFideId "24159565"]
[WhiteElo "2410"]
[BlackElo "2323"]
[Result "1-0"]
[Round "8"]
[TimeControl "180+2"]
[Date "2023.06.06"]
[WhiteClock "0:00:04"]
[BlackClock "0:00:02"]
[Board "21"]

1. d4 {[%clk 0:03:00]}  d5 {[%clk 0:02:59]} 2. Bf4 {[%clk 0:03:00]}  Nf6 {[%clk 0:02:59]} 3. e3 {[%clk 0:03:01]}  c5 {[%clk 0:02:58]} 4. c3 {[%clk 0:03:01]}  Nc6 {[%clk 0:02:54]} 5. Nd2 {[%clk 0:03:01]}  g6 {[%clk 0:02:40]} 6. Ngf3 {[%clk 0:03:01]}  Bg7 {[%clk 0:02:39]} 7. Be2 {[%clk 0:03:01]}  O-O {[%clk 0:02:38]} 8. O-O {[%clk 0:03:01]}  Nh5 {[%clk 0:02:39]} 9. Bg5 {[%clk 0:03:01]}  h6 {[%clk 0:02:36]} 10. Bh4 {[%clk 0:03:01]}  g5 {[%clk 0:02:37]} 11. Bg3 {[%clk 0:02:58]}  Nxg3 {[%clk 0:02:36]} 12. hxg3 {[%clk 0:02:59]}  Qb6 {[%clk 0:02:35]} 13. Qb3 {[%clk 0:02:58]}  Rd8 {[%clk 0:02:23]} 14. Rad1 {[%clk 0:02:50]}  Bf5 {[%clk 0:02:23]} 15. Rfe1 {[%clk 0:02:46]}  e6 {[%clk 0:02:17]} 16. Qxb6 {[%clk 0:02:35]}  axb6 {[%clk 0:02:16]} 17. a3 {[%clk 0:02:36]}  Bg6 {[%clk 0:01:57]} 18. g4 {[%clk 0:02:31]}  f6 {[%clk 0:01:42]} 19. Nf1 {[%clk 0:02:22]}  c4 {[%clk 0:01:36]} 20. Ng3 {[%clk 0:02:17]}  Ra5 {[%clk 0:01:34]} 21. Nd2 {[%clk 0:02:11]}  f5 {[%clk 0:01:29]} 22. gxf5 {[%clk 0:01:18]}  exf5 {[%clk 0:01:29]} 23. f4 {[%clk 0:01:17]}  g4 {[%clk 0:01:27]} 24. Kf2 {[%clk 0:01:05]}  b5 {[%clk 0:01:09]} 25. Rh1 {[%clk 0:01:03]}  Re8 {[%clk 0:01:05]} 26. Rb1 {[%clk 0:00:49]}  Kf7 {[%clk 0:01:04]} 27. Bd1 {[%clk 0:00:46]}  Ra7 {[%clk 0:00:57]} 28. Bc2 {[%clk 0:00:46]}  Ne7 {[%clk 0:00:54]} 29. Rh2 {[%clk 0:00:33]}  Ra6 {[%clk 0:00:49]} 30. Rhh1 {[%clk 0:00:31]}  Rh8 {[%clk 0:00:45]} 31. Nh5 {[%clk 0:00:30]}  Nc8 {[%clk 0:00:42]} 32. Nf1 {[%clk 0:00:16]}  Nd6 {[%clk 0:00:38]} 33. Nfg3 {[%clk 0:00:15]}  Bf8 {[%clk 0:00:38]} 34. Rhd1 {[%clk 0:00:14]}  Be7 {[%clk 0:00:38]} 35. Rh1 {[%clk 0:00:13]}  Re8 {[%clk 0:00:35]} 36. Ne2 {[%clk 0:00:13]}  Bd8 {[%clk 0:00:33]} 37. Nhg3 {[%clk 0:00:12]}  Rh8 {[%clk 0:00:29]} 38. Nh5 {[%clk 0:00:11]}  b6 {[%clk 0:00:29]} 39. Rbd1 {[%clk 0:00:09]}  Ra7 {[%clk 0:00:29]} 40. Rc1 {[%clk 0:00:09]}  Ne8 {[%clk 0:00:26]} 41. Rce1 {[%clk 0:00:08]}  Nd6 {[%clk 0:00:27]} 42. Rd1 {[%clk 0:00:07]}  Re7 {[%clk 0:00:21]} 43. Rde1 {[%clk 0:00:08]}  Rhe8 {[%clk 0:00:21]} 44. Neg3 {[%clk 0:00:08]}  Ra7 {[%clk 0:00:15]} 45. Ra1 {[%clk 0:00:07]}  Rh8 {[%clk 0:00:11]} 46. Rae1 {[%clk 0:00:06]}  Re7 {[%clk 0:00:09]} 47. Rd1 {[%clk 0:00:05]}  Re6 {[%clk 0:00:08]} 48. Ra1 {[%clk 0:00:04]}  Rhe8 {[%clk 0:00:07]} 49. Rae1 {[%clk 0:00:05]}  R6e7 {[%clk 0:00:08]} 50. Re2 {[%clk 0:00:04]}  Rh8 {[%clk 0:00:07]} 51. Ree1 {[%clk 0:00:04]}  Ra7 {[%clk 0:00:05]} 52. Ra1 {[%clk 0:00:04]}  Bf6 {[%clk 0:00:04]} 53. Nxf6 {[%clk 0:00:03]}  Kxf6 {[%clk 0:00:05]} 54. Nh5+ {[%clk 0:00:04]}  Kf7 {[%clk 0:00:04]} 55. Rae1 {[%clk 0:00:05]}  Re7 {[%clk 0:00:04]} 56. Re2 {[%clk 0:00:04]}  Bxh5 {[%clk 0:00:03]} 57. Rxh5 {[%clk 0:00:04]}  Kg6 {[%clk 0:00:04]} 58. Rh4 {[%clk 0:00:04]}  h5 {[%clk 0:00:04]} 59. Re1 {[%clk 0:00:04]}  Rhe8 {[%clk 0:00:03]} 60. Bb1 {[%clk 0:00:04]}  Ne4+ {[%clk 0:00:03]} 61. Bxe4 {[%clk 0:00:04]}  Rxe4 {[%clk 0:00:04]} 62. Rhh1 {[%clk 0:00:03]}  Kh6 {[%clk 0:00:03]} 63. g3 {[%clk 0:00:03]}  Kg6 {[%clk 0:00:02]} 64. Rh2 {[%clk 0:00:04]}  R4e7 {[%clk 0:00:03]} 65. Re2 {[%clk 0:00:04]}  Rh8 {[%clk 0:00:03]} 66. Re1 {[%clk 0:00:04]}  h4 {[%clk 0:00:04]} 67. Rxh4 {[%clk 0:00:02]}  Rxh4 {[%clk 0:00:04]} 68. gxh4 {[%clk 0:00:03]}  Kh5 {[%clk 0:00:02]} 69. Rb1 {[%clk 0:00:04]} 1-0


[Site "https://www.chess.com"]